Cogmind - Beta 16 @@@ ROGUE MODE // 2025.11.08 @ 18:37:15 Player: Biba Result: Destroyed by S-10 Pest with Light Assault Rifle Performance ------------- Evolutions (2) 1000 Regions Visited (4) 800 Robots Destroyed (30) 150 Value Destroyed (655) 655 Prototype IDs (2) 40 Alien Tech Used (0) 0 Bonus (147) 147 TOTAL SCORE: 2792 Bonus ------- Follower Combat Kills 147 Cogmind --------- Core Integrity 0/550 Matter 260/300 Energy 89/100 System Corruption 3% Temperature Cool (0) Movement Core (150) Ox2 Location -8/Materials Parts ------- > --- POWER (1) -------- (None) > --- PROPULSION (2) --- (None) > --- UTILITY (5) ------ (None) > --- WEAPON (3) ------- Rocket Array > --- INVENTORY (5) ---- Light Nuclear Core Armored Huge Wheel Huge Storage Unit Peak State ------------ > --- POWER ------------ Light Nuclear Core > --- PROPULSION ------- Aluminum Leg Improved Aluminum Leg > --- UTILITY ---------- Small Storage Unit Medium Storage Unit Seismic Detector Decoy Drone Bay > --- WEAPON ----------- Ion Cannon Heavy Assault Rifle High-powered Shotgun > --- INVENTORY -------- Ion Engine Light Ion Engine Wheel Compact Wheel Huge Storage Unit Light Armor Plating Hacking Suite [Rating: 31] Favorites ----------- Power Light Nuclear Core Engine Ion Engine Power Core Light Nuclear Core Propulsion Aluminum Leg Leg Aluminum Leg Wheel Wheel Utility Seismic Detector Device Seismic Detector Storage Small Storage Unit Hackware Hacking Suite Protection Light Armor Plating Weapon EM Pulse Gun Energy Gun EM Pulse Gun Energy Cannon Ion Cannon Ballistic Gun Assault Rifle Launcher Rocket Array Build | -11 -10 -10 -9 -8 ------- Run | Yrd Mat Min Mat Mat Slots Evolved 4 | . . . 2 2 Power . | . . . . . Propulsion . | . . . . . Utility 3 | . . . 2 1 Weapon 1 | . . . . 1 Parts Attached 25 | 8 . 5 2 10 Power 4 | 1 . 2 . 1 Engine 3 | 1 . 1 . 1 Core 1 | . . 1 . . Reactor . | . . . . . Propulsion 6 | 2 . 1 1 2 Treads . | . . . . . Leg 4 | 2 . 1 1 . Wheel 2 | . . . . 2 Hover . | . . . . . Flight . | . . . . . Utility 7 | 2 . . 1 4 Device 3 | 1 . . 1 1 Storage 2 | 1 . . . 1 Processor . | . . . . . Hackware 1 | . . . . 1 Protection 1 | . . . . 1 Artifact . | . . . . . Weapon 8 | 3 . 2 . 3 Energy Gun 2 | 2 . . . . Energy Cannon 1 | . . . . 1 Ballistic Gun 4 | 1 . 2 . 1 Ballistic Cannon . | . . . . . Launcher 1 | . . . . 1 Special Weapon . | . . . . . Impact Weapon . | . . . . . Slashing Weapon . | . . . . . Piercing Weapon . | . . . . . Special Melee Weapon . | . . . . . Unidentified Prototypes 2 | . . . 1 1 Parts Lost 8 | . . 1 . 7 Power . | . . . . . Propulsion 2 | . . . . 2 Utility 3 | . . . . 3 Weapon 3 | . . 1 . 2 Highest Loss Streak 7 | . . 1 . 7 To Critical Strikes . | . . . . . Average Backups 6 | 5 7 6 6 6 Power 1 | . 1 1 2 2 Propulsion 2 | 3 4 2 2 2 Utility 2 | . 1 2 2 2 Weapon . | . 1 . . . Tool/Special . | . . . . . Unused Backups 7 | . . 3 . 4 Power 1 | . . . . 1 Propulsion 4 | . . 2 . 2 Utility 2 | . . 1 . 1 Weapon . | . . . . . Tool/Special . | . . . . . Average Slot Usage (%) 90 | . 100 99 88 70 Engine 7 | . 14 10 . 1 Core 4 | . . 3 11 6 Leg 21 | . 28 28 22 6 Wheel 1 | . . . . 8 Device 15 | . 14 13 22 15 Storage 11 | . 14 14 11 7 Energy Gun 10 | . 28 13 . . Energy Cannon 1 | . . . . 5 Ballistic Gun 13 | . . 14 22 17 Peak Build Rating 31 | 7 8 12 25 31 Average Rating 14 | 5 7 9 24 23 On Entrance 10 | . 7 8 12 25 Avg Prop Armor Cover (%) . | . . . . . Naked Turns 61 | . . . . 61 Heaviest Build 42 | 15 15 16 30 42 Greatest Support 26 | 20 20 20 23 26 Greatest Overweight (x) 4 | 4 . . 1 4 Average Overweight (x) . | . . . 1 . Largest Inventory Capacity 10 | 8 8 8 8 10 Average Capacity 8 | 7 8 8 8 8 Most Carried 9 | 7 8 8 7 9 Average Carried 6 | 5 7 7 6 6 Final Capacity 8 | 8 8 8 8 5 Final Carried 8 | 7 8 8 6 4 Class Distribution -------------------- 55% | Mutant 28% | Scavenger-Mutant 6% | Gunner 4% | Scavenger-Gunner 4% | Scavenger-Tank Dominant Class ---------------- Mutant | -10/Materials Mutant | -10/Mines Scavenger-Mutant | -9/Materials Gunner | -8/Materials Resources | -11 -10 -10 -9 -8 ----------- Run | Yrd Mat Min Mat Mat Matter Collected 683 | 306 10 74 61 232 Remotely . | . . . . . Salvage Created 1040 | 147 203 128 63 499 Parts 69 | 13 12 11 9 24 Haulers Intercepted 1 | . . . . 1 Recyclers Shooed 1 | . . . 1 . Parts Field Recycled . | . . . . . Retrieved Matter . | . . . . . Parts Self-Destructed . | . . . . . Prevented . | . . . . . Parts Restored . | . . . . . Kills | -11 -10 -10 -9 -8 ------- Run | Yrd Mat Min Mat Mat Combat Hostiles Destroyed 20 | . 4 4 5 7 Guns 13 | . 2 4 5 2 Cannons 3 | . . . . 3 AOE 3 | . 1 . . 2 Classes Destroyed 6 | 2 1 1 . 2 Tunneler 4 | 3 . 1 . . Hauler 1 | . . . . 1 Recycler 3 | 1 . . . 2 Watcher 2 | . . . . 2 Swarmer 10 | . . 3 5 2 Grunt 10 | . 4 1 . 5 Best Kill Streak 4 | 3 2 3 3 4 Combat Bots Only 3 | . 2 3 3 3 Max Kills in Single Turn 3 | 1 1 1 1 3 Gunslinging . | . . . . . Exploded 2 | . 1 . . 2 Melee . | . . . . . Uniques/NPCs Destroyed . | . . . . . Combat | -11 -10 -10 -9 -8 -------- Run | Yrd Mat Min Mat Mat Hostile Shots Fired 179 | . 20 15 32 112 Missed 48 | . 3 6 7 32 Hits 131 | . 17 9 25 80 Projectile 131 | . 17 9 25 80 Critical Strikes 7 | . 2 . . 5 Damage Taken 1681 | . 251 78 198 1154 Core 619 | . 41 15 13 550 Absorbed by Shields . | . . . . . Core Remaining (%) 91 | 100 . 77 96 . Volleys Fired 73 | 12 20 8 11 22 Largest 3 | 2 2 2 2 3 Hottest 108 | 60 80 80 43 108 Shots Fired 159 | 21 40 16 22 60 Gun 139 | 21 40 16 22 40 Cannon 19 | . . . . 19 Launcher 1 | . . . . 1 Special . | . . . . . Kinetic 76 | 12 . 2 22 40 Thermal 19 | . . . . 19 Explosive 1 | . . . . 1 Electromagnetic 63 | 9 40 14 . . Robot Hit Streak 9 | 5 9 3 2 9 Robot Miss Streak 5 | 2 3 3 3 5 Penetration Max . | . . . . . Secondary Targets . | . . . . . Shots Hit Robots 84 | 11 23 8 7 35 Core Hits 49 | 5 9 5 6 24 Critical Kills 1 | . . 1 . . Critical Parts Destroyed . | . . . . . Critical Strikes 1 | . . 1 . . Destroy 1 | . . 1 . . Melee Attacks . | . . . . . Impact . | . . . . . Slashing . | . . . . . Piercing . | . . . . . Sneak Attacks . | . . . . . Combat Hostiles . | . . . . . Follow-up Attacks . | . . . . . Damage Inflicted 1671 | 147 375 95 137 917 Guns 1164 | 147 325 95 131 466 Cannons 278 | . . . . 278 Explosions 218 | . 50 . . 168 Melee . | . . . . . Ramming 11 | . . . 6 5 Kinetic 682 | 77 . 8 131 466 Thermal 328 | . 50 . . 278 Explosive 168 | . . . . 168 Electromagnetic 482 | 70 325 87 . . Impact . | . . . . . Slashing . | . . . . . Piercing . | . . . . . Highest Corruption 3 | . . . . 3 Average Corruption 3 | . . . . 3 Corruption Purged . | . . . . . Corruption Blocked . | . . . . . Effects 1 | . . . . 1 Heat Flow Errors 1 | . . . . 1 Overload Shots . | . . . . . Overflow Damage . | . . . . . Projectiles . | . . . . . Explosions . | . . . . . Melee . | . . . . . Knockbacks . | . . . . . Impact . | . . . . . Kinetic . | . . . . . Secondary . | . . . . . Self-Inflicted Damage 34 | . 12 . . 22 Shots 2 | . 1 . . 1 Rammed 1 | . . . . 1 Targets Rammed 3 | . . . 2 1 Kicked 2 | . . . 2 . Crushed . | . . . . . Highest Temperature 379 | . 171 72 . 379 Average Temperature 87 | . 67 28 . 132 Received Heat Transfer 795 | . 174 9 . 612 Effects 2 | . . . . 2 Energy Bleed 1 | . . . . 1 Matter Decay 1 | . . . . 1 Siege Activations . | . . . . . Martial Activations . | . . . . . Shielding Activations . | . . . . . Robots Disrupted . | . . . . . Combat Hostiles . | . . . . . Robots Corrupted 1 | . 1 . . . Combat Hostiles 1 | . 1 . . . Parts Fried 4 | . 3 . 1 . Impact Corruptions 1 | . . . 1 . Robots Melted . | . . . . . Combat Hostiles . | . . . . . Parts Melted . | . . . . . Heat Transferred 544 | . 100 . . 444 Parts Sabotaged . | . . . . . Parts Stolen . | . . . . . Parts Stripped . | . . . . . Power Chain Reactions 1 | . 1 . . . Alert | -11 -10 -10 -9 -8 ------- Run | Yrd Mat Min Mat Mat Maximum Alert Level 1 | . . . . 1 Low Security (%) 99 | 100 100 100 100 99 Level 1 . | . . . . . Level 2 . | . . . . . Level 3 . | . . . . . Level 4 . | . . . . . Level 5 . | . . . . . High Security . | . . . . . Max Security . | . . . . . Peak Influence 216 | 5 55 121 153 216 Initial 22 | . . 4 22 22 Average 35 | 1 18 39 66 25 Influence Increases 1061 | 20 124 306 253 358 Destroy 0b10 Robot/C 620 | . 80 240 160 140 Destroy 0b10 Robot/NC 50 | 20 . 5 . 25 Destroy Leader 96 | . 20 30 20 26 Allied During Kill 44 | . . 31 13 . Successful Hack 7 | . 7 . . . Disable Machine 15 | . . . . 15 Destroy Structure 49 | . 2 . . 47 Lose Combat Pursuer 180 | . 15 . 60 105 Influence Decreases 845 | 20 112 259 259 195 Entered New Map 76 | . . 8 37 31 Time Decay 610 | 20 112 246 150 82 Lost Part 75 | . . 5 . 70 Lost Ally 84 | . . . 72 12 Squads Dispatched 2 | . . . . 2 Investigation . | . . . . . Extermination . | . . . . . Reinforcement 2 | . . . . 2 Assault . | . . . . . Garrison . | . . . . . Intercept . | . . . . . Searches Triggered . | . . . . . Construction Impeded 1 | . . . . 1 Haulers Reinforced . | . . . . . Active Scanning Responses . | . . . . . Cargo Convoy Interrupts . | . . . . . Stealth | -11 -10 -10 -9 -8 --------- Run | Yrd Mat Min Mat Mat Distress Signals 3 | . 1 . . 2 Communications Jammed . | . . . . . Distress Signals . | . . . . . Times Spotted 57 | . 9 13 11 24 Peak Tracking Total 13 | . 3 3 5 13 Tactical Retreats 4 | . 1 . 2 1 Traps | -11 -10 -10 -9 -8 ------- Run | Yrd Mat Min Mat Mat Traps Triggered 1 | . . . . 1 Indirectly . | . . . . . Trap Hack Attempts . | . . . . . Triggered . | . . . . . Disarmed . | . . . . . Reprogrammed . | . . . . . Reused . | . . . . . Traps Extracted . | . . . . . Installed . | . . . . . Triggered . | . . . . . Machines | -11 -10 -10 -9 -8 ---------- Run | Yrd Mat Min Mat Mat Machines Disabled 1 | . . . . 1 Max in Single Turn 1 | . . . . 1 Machines Repaired . | . . . . . Machines Dismantled . | . . . . . Machines Sabotaged . | . . . . . Overloaded Fab Kills . | . . . . . Hacking | -11 -10 -10 -9 -8 --------- Run | Yrd Mat Min Mat Mat Machines Accessed 6 | . 4 1 1 . Terminals 5 | . 4 . 1 . Fabricators . | . . . . . Repair Stations . | . . . . . Recycling Units . | . . . . . Scanalyzers . | . . . . . Garrison Access . | . . . . . Total Hacks 13 | . 9 1 3 . Successful 3 | . 1 1 1 . Failed 10 | . 8 . 2 . Catastrophic 2 | . 1 . 1 . Database Lockouts . | . . . . . Manual 12 | . 9 . 3 . Terminals 12 | . 9 . 3 . Fabricators . | . . . . . Repair Stations . | . . . . . Recycling Units . | . . . . . Scanalyzers . | . . . . . Garrison Access . | . . . . . Terminal Hacks 2 | . 1 1 . . Open Door 1 | . . 1 . . Branch Access Points 1 | . 1 . . . Fabricator Hacks . | . . . . . Repair Station Hacks . | . . . . . Recycling Unit Hacks . | . . . . . Scanalyzer . | . . . . . Garrison Access Hacks . | . . . . . Unauthorized Hacks 1 | . . . 1 . Terminals 1 | . . . 1 . Botnet 1 | . . . 1 . Fabricators . | . . . . . Repair Stations . | . . . . . Recycling Units . | . . . . . Scanalyzers . | . . . . . Garrison Access . | . . . . . Data Cores Recovered . | . . . . . Used . | . . . . . Hacking Detections 4 | . 3 . 1 . Full Trace Events 1 | . 1 . . . Feedback Events . | . . . . . Feedback Blocked . | . . . . . Robot Schematics Acquired . | . . . . . Robots Built . | . . . . . Authchips . | . . . . . Time . | . . . . . Total Robot Build Rating . | . . . . . Part Schematics Acquired . | . . . . . Parts Built . | . . . . . Authchips . | . . . . . Time . | . . . . . Total Part Build Rating . | . . . . . Part Studies Acquired . | . . . . . Parts Repaired . | . . . . . Time . | . . . . . Parts Recycled . | . . . . . Recycled Matter . | . . . . . Retrieved Matter . | . . . . . Retrieved Components . | . . . . . Parts Scanalyzed . | . . . . . Part Schematics Acquired . | . . . . . Parts Damaged . | . . . . . Bothacking | -11 -10 -10 -9 -8 ------------ Run | Yrd Mat Min Mat Mat Used RIF Installer . | . . . . . Robots Hacked . | . . . . . Non-combat . | . . . . . Combat . | . . . . . Robot Hacks Applied . | . . . . . Relay Couplers Released . | . . . . . Fabnet Peak Effective % . | . . . . . Robots Rewired . | . . . . . Allies Hacked . | . . . . . Hacks Repelled . | . . . . . Allies | -11 -10 -10 -9 -8 -------- Run | Yrd Mat Min Mat Mat Total Allies 3 | . . 3 . . Largest Group 3 | . . 3 3 . Highest-Rated Group 40 | . . 40 40 . Highest-Rated Ally 16 | . . 16 16 . Total Orders 3 | . . . 1 2 ROAM 1 | . . . . 1 EXPLORE 2 | . . . 1 1 Ally Attacks 39 | . . 22 17 . Total Damage 352 | . . 236 116 . Kills 11 | . . 8 3 . Allies Corrupted . | . . . . . Allies Melted . | . . . . . Intel | -11 -10 -10 -9 -8 ------- Run | Yrd Mat Min Mat Mat Active Infowar (turns) 2011 | 28 367 813 391 412 Seismic 2011 | 28 367 813 391 412 Robot Analysis Total . | . . . . . Derelict Logs Recovered 1 | . . 1 . . Drone Launches 12 | . . . 5 7 Drone Recoveries . | . . . . . Exploration | -11 -10 -10 -9 -8 ------------- Run | Yrd Mat Min Mat Mat Turns Passed 2206 | 155 367 818 391 475 Spaces Moved 1354 | 83 246 633 161 231 Core 117 | 14 . . . 103 Treads . | . . . . . Legs 1182 | 69 246 633 161 73 Wheels 55 | . . . . 55 Hover . | . . . . . Flight . | . . . . . Fastest Speed 50 | 50 120 120 190 50 Average Speed 126 | 124 120 120 190 108 Slowest Speed 250 | 250 120 120 190 250 Overloaded Moves . | . . . . . Propulsion Burnouts . | . . . . . Robots Hopped . | . . . . . Potential Cave-ins . | . . . . . Cave-ins Triggered . | . . . . . Exploration Rate (%) 46 | 5 56 93 37 40 Regions Visited 4 Branch Regions 1 Pre-discovered Areas . | . . . . . Known Exits Taken 1 | . 1 . . . Unknown Exits Taken 3 | 1 . 1 1 . Scrap Searched 1 | . . 1 . . Spaces Dug . | . . . . . Terrain Destroyed 45 | . 2 . . 43 Melee . | . . . . . Projectile 2 | . . . . 2 AOE 43 | . 2 . . 41 Terrain Rammed . | . . . . . Walls Destroyed . | . . . . . Machines Disabled . | . . . . . Actions | -11 -10 -10 -9 -8 --------- Run | Yrd Mat Min Mat Mat Total 1702 | 109 278 678 223 414 Wait 209 | . 12 17 47 133 Move 1350 | 82 245 632 160 231 Hop . | . . . . . Pick Up 16 | 7 1 4 . 4 Fast Attach 11 | 7 . 1 . 3 Attach 8 | . . 2 1 5 Detach 4 | . . . . 4 Swap 8 | 1 . 4 1 2 Drop 19 | . . 9 1 9 Fire 73 | 12 20 8 11 22 Melee . | . . . . . Ram 1 | . . . . 1 Kick 2 | . . . 2 . Crush . | . . . . . Escape Stasis . | . . . . . Rewire 1 | . . 1 . . Trap . | . . . . . Miscellaneous . | . . . . . Route ------- -11/Scrapyard -10/Materials (discovered 3 exits: *Mat x2 / *Min) -10/Mines (discovered 2 exits: *Mat x2) -9/Materials (discovered 2 exits: [*Mat] / [*Min]) -8/Materials History --------- Turn | Location | Event 33 | -11/Scrapyard | Discovered new exit (range 15) 156 | -11/Scrapyard | Entered Materials 264 | -10/Materials | Discovered new exit (range 16) 306 | -10/Materials | Build established: Mutant 442 | -10/Materials | Discovered new exit (range 8) 498 | -10/Materials | Identified exit to Mines 523 | -10/Materials | Entered Mines 564 | -10/Mines | Found the Drone Emporium 578 | -10/Mines | Found Prototype Device 603 | -10/Mines | Learned Materials garrison access intel 773 | -10/Mines | Discovered new exit (range 5) 797 | -10/Mines | Assisted by bots powering up and referring to "LRC-V3" 999 | -10/Mines | Discovered new exit (range 11) 1341 | -10/Mines | Entered Materials 1341 | -9/Materials | Accompanied by 3 allies 1341 | -9/Materials | Evolved 2 slots: Utility x2 1341 | -9/Materials | Identified Decoy Drone Bay 1354 | -9/Materials | Discovered new exit (range 37) 1457 | -9/Materials | Build established: Scavenger-Mutant 1698 | -9/Materials | Discovered new exit (range 4) 1732 | -9/Materials | Entered another Materials area 1732 | -8/Materials | Evolved 2 slots: Utility x1, Weapon x1 1733 | -8/Materials | Loaded intel: 1 garrison access location 2159 | -8/Materials | Core integrity fell below 50% 2175 | -8/Materials | Lost 7 parts (2n3u2w) 2175 | -8/Materials | Found Prototype Launcher 2187 | -8/Materials | Core integrity fell below 20% 2205 | -8/Materials | Identified Rocket Array 2207 | -8/Materials | Destroyed by S-10 Pest with Light Assault Rifle Last Messages --------------- Acquired 31 matter. K-01 Serf collects debris. Dropped Aluminum Leg. System corrupted: Heat flow error (+147). Dropped Carbon-fiber Leg. K-01 Serf collects debris. Slug penetrates Wall. Acquired Prototype Launcher. Dropped Ion Engine. Acquired Arm. Huge Wheel. Slug penetrates Door. U-05 Engineer builds a Door. Triggered Blade Trap. Massive razor-sharp blades shoot up from within the floor. K-01 Serf cleans the Terminal. Identified Rocket Array. S-10 Pest destroyed. W-25 Informer destroyed. S-10 Pest destroyed. The unstable cave ceiling collapses. Map ----- +----------------------------------------------------+ | ?????? ????????????????????????????? | | ????# ????????????????????????????? | | ????# ????????????????????????????? | | ????# #???????????????????????????? | | ????# #???????????????????????????? | | ##### #???????????????????????????? | | ????????????????????????????? | | ????????????????????????????? | | !! ????????????????????????????? | | !* ????????????????????????????? | | ! ????????????????????????????? | | ????????????????????????????? | | #????????????????+???????????? | | #??????????#????? #??????????? | | #??????????# #??? #??????????? | | %############ #??? #??????????? | | #### ###????????? | | !! #????????? | | ! #????????? | | #????????? | | % #????????? | | #####+## #????????? | | ???????# ###+##### #????????? | | ???????### ###???????# #????????? | | ?????????# #?????????# #????????? | | ?????????# #????????## @ #????????? | | ?????????# #????????+ ???? | | ????????## ##???????## ! | | ????????# #????????# % = | | ??####### #????????### s%# | | / #??????????? | | ??####### #??????????? s | | ????????# % #???????????#%* ? | | ????????### ###???????????#[ # ? | | ??????????# #?????????????# # ? | | ####??????# #?????????????# #? ?? | | #??????# #???????#+#???# ?# ?? | | ## ######## #???????# ##### #? ???? | | ?# % #???????# #???????? | | ?# #???????+ +???????? | | ?# """"" #???????# #???????? | | ?# ""T"" #???????# ##???????? | | ?# ######### #????????? | | ?# #????????? | | ?# ^ +????????? | | ?# ##### #????????? | | ?# #???# ###+########????????? | | ?# #???# #???????????????????? | | ?# #???# #???????????????????? | | ?# """ #???# #???????????????????? | +----------------------------------------------------+ Best States ------------- Heat Dissipation 45 Energy Generation 14 Energy Capacity 250 Matter Stores 300 Matter Capacity 300 Sight Range 16 Terrain Scan Density 10 Armor Coverage 150 Evasion (%) 55 Offensive Hacking 10 Item Schematics ----------------- None Robot Schematics ------------------ None Fabricated ------------ Nothing Repaired ---------- Nothing Studied --------- None Alien Tech Used ----------------- None Achievements -------------- None Challenges ------------ None Game ------ Seed ReactionNeutrinoNukerbomber Manual? 0 Play Time 00:25:25 Cumulative 34.6 hours Start 2025.11.08 @ 18:09:19 End 2025.11.08 @ 18:37:15 Sessions 1 Manual Loads 0 Difficulty Rogue Special Mode None Game No. 44 Rogue 44 Adventurer 0 Explorer 0 Win Type - Total 0 Types 0/0/0/0/0/0/0/0/0/0 Lore% 17 Gallery% 29 Achievement% 21 Wizard Run 0 Options --------- Layout 0 ASCII 0 Keyboard 1 Movement Numpad Keybinds 0 Fullscreen 2 Font 18/X11 Map View 76x50 Zoom Use 0% Tactical HUD 0 Map Filters NONE Filters NONE Steam 1 RUN: 65e9901f-8cb5-4c67-8ba2-79913652cb0a